bitfinex/quotes_SOLUSD_20250915
["timestamp","ask_amount","ask_price","bid_price","bid_amount"]
[1757920924887,36.91490591,241.26,241.25,0.06]
[1757920925090,39.68399119,241.26,241.25,0.06]
[1757920927583,64.97399119,241.26,241.25,0.06]
[1757920929289,65.67399119,241.26,241.25,0.06]
[1757920930288,33.61399119,241.26,241.25,0.06]
[1757920930492,65.67399119,241.26,241.25,0.06]
[1757920932496,26.0,241.24,241.23,0.06]
[1757920932677,60.82908528,241.24,241.23,0.06]
[1757920932876,35.52908528,241.24,241.23,0.06]
[1757920933375,39.67433482,241.24,241.23,0.06]
[1757920934178,38.97433482,241.24,241.23,0.06]
[1757920934364,6.91433482,241.24,241.23,0.06]
[1757920934572,58.06,241.24,241.23,0.06]
[1757920934770,30.14524954,241.24,241.23,0.06]
[1757920934994,62.20524954,241.24,241.23,0.06]
[1757920935694,4.14456233,241.28,241.23,0.06]
[1757920935995,58.76,241.27,241.23,0.06]
[1757920936195,2.7717989,241.26,241.23,0.06]
[1757920936373,32.06,241.25,241.23,0.06]
[1757920936768,32.76,241.25,241.23,0.06]
[1757920936971,0.7,241.24,241.23,0.06]
[1757920937204,3.47162502,241.24,241.23,0.06]
[1757920938086,7.61687456,241.24,241.23,0.06]
[1757920941891,32.06,241.24,241.23,0.06]
[1757920942095,36.20524954,241.24,241.23,0.06]
[1757920943119,26.0,241.25,241.23,0.06]
[1757920943294,32.06,241.24,241.23,0.06]
[1757920947818,26.03,241.25,241.23,0.06]
[1757920948028,0.03,241.25,241.24,13.59559401]
[1757920948205,0.03,241.25,241.24,14.14559401]
[1757920948517,0.03,241.28,241.24,14.14559401]
[1757920948718,0.03,241.28,241.26,13.59559401]
[1757920949219,0.03,241.28,241.27,0.52]
[1757920949917,0.03,241.28,241.27,18.26032812]
[1757920950803,0.03,241.28,241.27,13.59559401]
[1757920951006,32.79,241.28,241.23,0.06]
[1757920951203,0.7,241.27,241.23,0.06]
[1757920951404,0.7,241.26,241.23,0.06]
[1757920951702,34.83766347,241.25,241.23,0.06]
[1757920951901,36.90520691,241.25,241.23,0.06]
[1757920952722,32.76,241.25,241.23,0.06]
[1757920952927,32.06,241.25,241.23,0.06]
[1757920953301,0.03,241.28,241.23,0.06]
[1757920953630,34.8580135,241.27,241.24,13.59559401]
[1757920953817,2.7780135,241.26,241.24,13.59559401]
[1757920954001,32.08,241.27,241.24,13.59559401]
[1757920954195,2.77828558,241.26,241.24,13.59559401]
[1757920954403,2.77828558,241.26,241.23,4.20541588]
[1757920954404,32.08,241.27,241.23,0.06]
[1757920954608,2.77910863,241.26,241.23,0.06]
[1757920954825,32.08,241.27,241.23,0.06]
[1757920955008,2.77979921,241.26,241.23,0.06]
[1757920955324,32.08,241.27,241.23,0.06]
[1757920955512,2.77978566,241.26,241.23,0.06]
[1757920955822,32.08,241.27,241.23,0.06]
[1757920956150,7.6246924,241.26,241.23,0.06]
[1757920956317,2.7797855,241.25,241.23,0.06]
[1757920956622,34.8397855,241.24,241.23,0.06]
[1757920956821,35.5397855,241.24,241.23,0.06]
[1757920957135,39.68503504,241.24,241.23,0.06]
[1757920960053,7.62503504,241.24,241.23,0.06]
[1757920960351,39.68503504,241.24,241.23,0.06]
[1757920961337,65.68503504,241.24,241.23,0.06]
[1757920963166,39.68503504,241.24,241.23,0.06]
[1757920963678,132.5,241.23,241.21,0.06]
[1757920963959,38.31506703,241.22,241.21,0.06]
[1757920964142,6.96506703,241.22,241.21,0.06]
[1757920964343,39.02506703,241.22,241.21,0.06]
[1757920965554,43.17066026,241.22,241.21,0.06]
[1757920966467,11.11066026,241.22,241.21,0.06]
[1757920966634,43.17066026,241.22,241.21,0.06]
[1757920966840,39.69537873,241.22,241.2,0.06]
[1757920967148,2.7797855,241.21,241.2,0.06]
[1757920967541,35.5497855,241.21,241.2,0.06]
[1757920968547,33.6355506,241.21,241.2,0.06]
[1757920968749,69.17104381,241.21,241.2,0.06]
[1757920970049,65.6955506,241.21,241.2,0.06]
[1757920972574,69.16712881,241.21,241.2,0.06]
[1757920974157,68.45712881,241.21,241.2,0.06]
[1757920974467,64.9855506,241.21,241.2,0.06]
[1757920974669,65.6955506,241.21,241.2,0.06]
[1757920974877,33.6355506,241.21,241.2,0.06]
[1757920975088,65.6955506,241.21,241.2,0.06]
[1757920975581,64.9855506,241.21,241.2,0.06]
[1757920977086,65.6855506,241.21,241.2,0.06]
[1757920978351,64.9855506,241.21,241.2,0.06]
[1757920981691,65.6855506,241.21,241.2,0.06]
[1757920983581,33.6255506,241.21,241.2,0.06]
[1757920983771,132.5,241.2,241.18,0.06]
[1757920983974,26.0,241.16,241.15,0.06]
[1757920984177,60.8397855,241.16,241.15,0.06]
[1757920984388,61.5397855,241.16,241.15,0.06]
[1757920985085,65.68641014,241.16,241.15,0.06]
[1757920985888,32.92641014,241.16,241.15,0.06]
[1757920986202,65.00641014,241.16,241.15,0.06]
[1757920986880,65.70641014,241.16,241.15,0.06]
[1757920987474,65.69331812,241.16,241.15,0.06]
[1757920989477,65.69331812,241.16,241.13,0.06]
[1757920989478,76.05987973,241.16,241.13,0.06]
[1757920989669,135.26669348,241.15,241.13,0.06]
[1757920989870,60.84669348,241.14,241.13,0.06]
[1757920990099,61.56669348,241.14,241.13,0.06]
[1757920991909,65.71366204,241.14,241.13,0.06]
[1757920992084,32.91366204,241.14,241.13,0.06]
[1757920992274,64.99366204,241.14,241.13,0.06]
[1757920992789,65.71366204,241.14,241.13,0.06]
[1757920993004,64.99366204,241.14,241.13,0.06]
[1757920993907,64.99366204,241.14,241.13,0.58]
[1757920994278,64.99366204,241.14,241.13,0.06]
[1757920995493,60.84669348,241.14,241.13,0.06]
[1757920995797,60.84669348,241.14,241.13,0.58]
[1757920996585,64.99366204,241.14,241.13,0.06]
[1757920999599,60.84669348,241.14,241.13,0.06]
[1757921000591,64.99366204,241.14,241.13,0.06]
[1757921004015,60.84669348,241.14,241.13,0.06]
[1757921005189,64.99366204,241.14,241.13,0.06]
[1757921005390,64.99366204,241.14,241.13,18.32273455]
[1757921005391,2.76669348,241.14,241.13,18.32273455]
[1757921005699,138.60068181,241.2,241.13,18.32273455]
[1757921005700,32.08,241.17,241.13,18.32273455]
[1757921005905,32.08,241.17,241.15,13.59559401]
[1757921006090,32.08,241.17,241.15,14.11559401]
[1757921006290,132.5,241.2,241.15,14.11559401]
[1757921006594,34.85814339,241.19,241.15,14.11559401]
[1757921006778,2.77814339,241.18,241.15,14.11559401]
[1757921006980,34.85814339,241.17,241.15,14.11559401]
[1757921007182,32.08,241.17,241.15,13.59559401]
[1757921007682,32.08,241.17,241.13,14.17559401]
[1757921007885,32.8,241.17,241.13,0.06]
[1757921008086,3.4991142,241.16,241.13,0.06]
[1757921008282,34.8591142,241.15,241.13,0.06]
[1757921008477,2.7791142,241.14,241.13,0.06]
[1757921010616,7.64608276,241.14,241.13,0.06]
[1757921012113,3.4991142,241.14,241.13,0.06]
[1757921012311,7.64608276,241.14,241.13,0.06]
[1757921013010,11.10444961,241.14,241.13,0.06]
[1757921013687,26.0,241.12,241.11,0.06]
[1757921013908,68.4793828,241.12,241.11,0.06]
[1757921014104,69.1993828,241.12,241.11,0.06]
[1757921014299,65.72642674,241.12,241.11,0.06]
[1757921015814,32.92642674,241.12,241.11,0.06]
[1757921016115,65.00642674,241.12,241.11,0.06]
[1757921016296,28.7791142,241.12,241.11,0.06]
[1757921016498,60.8591142,241.12,241.11,0.06]
[1757921017292,65.00642674,241.12,241.11,0.06]
[1757921017539,65.72642674,241.12,241.11,0.06]
[1757921022310,65.00642674,241.12,241.11,0.06]
[1757921023136,60.8591142,241.12,241.11,0.06]
[1757921023508,65.71642674,241.12,241.11,0.06]
[1757921023907,28.7791142,241.12,241.11,0.06]
[1757921024130,34.8591142,241.12,241.11,14.17559401]
[1757921024309,32.08,241.14,241.12,13.59559401]
[1757921024514,2.77878191,241.13,241.12,13.59559401]
[1757921025736,32.08,241.14,241.12,13.59559401]
[1757921026233,32.08,241.14,241.11,0.06]
[1757921026535,2.77851749,241.13,241.11,0.06]
[1757921026724,32.08,241.14,241.11,0.06]
[1757921026919,2.77883783,241.13,241.11,0.06]
[1757921027122,32.08,241.14,241.11,0.06]
[1757921027323,2.77923188,241.13,241.11,0.06]
[1757921027528,32.08,241.12,241.11,0.06]
[1757921027709,34.85904974,241.12,241.11,0.06]
[1757921028138,35.56904974,241.12,241.11,0.06]
[1757921028813,34.85904974,241.12,241.11,0.06]
[1757921029008,39.00636228,241.12,241.11,0.06]
[1757921029208,39.71636228,241.12,241.11,0.06]
[1757921029519,39.00636228,241.12,241.11,0.06]
[1757921029722,39.71636228,241.12,241.11,0.06]
[1757921030428,34.85904974,241.12,241.11,0.06]
[1757921030619,2.77904974,241.12,241.11,0.06]
[1757921030817,39.71636228,241.12,241.11,0.06]
[1757921032825,7.63636228,241.12,241.11,0.06]
[1757921033021,39.71636228,241.12,241.11,0.06]
[1757921033216,7.63636228,241.12,241.11,0.06]
[1757921033432,39.00636228,241.12,241.11,0.06]
[1757921033644,39.71636228,241.12,241.11,0.06]
[1757921040448,45.81704409,241.12,241.1,0.06]
[1757921040627,6.2515498,241.11,241.1,0.06]
[1757921040953,170.8315498,241.11,241.1,0.06]
[1757921041153,171.4915498,241.11,241.1,0.06]
[1757921042025,142.89903435,241.11,241.1,0.06]
[1757921042222,171.50653429,241.11,241.1,0.06]
[1757921042430,140.08653429,241.11,241.1,0.06]
[1757921042650,172.16653429,241.11,241.1,0.06]
[1757921043626,140.08653429,241.11,241.1,0.06]
[1757921043854,139.42653429,241.11,241.1,0.06]
[1757921044042,171.50653429,241.11,241.1,0.06]
[1757921044358,197.50653429,241.11,241.1,0.06]
[1757921045131,161.27904974,241.11,241.1,0.06]
[1757921045366,32.08,241.11,241.1,0.06]
[1757921045570,35.51715839,241.11,241.1,0.06]
[1757921046627,35.51715839,241.11,241.1,1e-08]
[1757921046830,6.10068181,241.1,241.09,1e-08]
[1757921047170,8.8778402,241.1,241.08,1e-08]
[1757921047339,43.13305586,241.09,241.08,1e-08]
[1757921047862,132.5,241.08,241.06,1e-08]
[1757921048158,35.51715839,241.07,241.06,1e-08]
[1757921048461,51.54193494,241.07,241.06,1e-08]
[1757921049232,44.6874064,241.07,241.06,1e-08]
[1757921049569,48.83557912,241.07,241.06,1e-08]
[1757921050534,26.0,241.03,240.93,0.52]
[1757921050735,26.0,240.99,240.93,0.52]
[1757921050963,34.85715839,240.98,240.93,0.52]
[1757921051147,2.77715839,240.97,240.93,0.52]
[1757921051328,34.85715839,240.96,240.94,0.52]
[1757921051532,32.08,240.95,240.94,0.52]
[1757921052761,6.10068181,241.02,240.95,13.59559401]
[1757921052961,2.76517425,241.01,240.97,13.59559401]
[1757921053259,32.08,241.0,240.98,0.52]
[1757921053453,32.08,241.0,240.99,0.52]
[1757921053659,34.84481714,241.0,240.99,0.52]
[1757921054338,34.84429334,241.0,240.95,13.59559401]
[1757921054551,34.84429334,241.0,240.77,35.35230408]
[1757921054552,2.76429334,240.99,240.89,13.59559401]
[1757921054774,34.84429334,240.98,240.92,0.58]
[1757921054932,2.76429334,240.97,240.92,0.58]
[1757921055143,32.08,240.96,240.93,0.52]
[1757921056062,4.14972196,240.98,240.93,0.52]
[1757921056263,32.08,240.97,240.93,0.52]
[1757921056465,4.14972196,240.98,240.93,0.52]
[1757921056773,32.08,240.97,240.93,0.52]
[1757921057572,32.08,240.97,240.92,13.65559401]
[1757921057781,36.88991195,240.97,240.92,13.65559401]
[1757921058365,36.22991195,240.97,240.92,0.58]
[1757921058561,36.88991195,240.97,240.92,0.06]
[1757921058750,0.66,240.96,240.92,0.06]
[1757921058949,32.74,240.95,240.92,0.06]
[1757921059364,3.42157756,240.94,240.92,0.06]
[1757921059649,36.23058315,240.93,240.92,0.06]
[1757921059953,36.89058315,240.93,240.92,0.06]
[1757921060961,39.65042095,240.93,240.92,0.06]
[1757921061169,36.89058315,240.93,240.92,0.06]
[1757921061963,45.74979164,240.93,240.92,0.06]
[1757921062369,26.0,240.9,240.89,0.06]
[1757921062562,64.18068181,240.9,240.89,0.06]
[1757921062846,32.76068181,240.9,240.89,0.06]
[1757921063046,32.10068181,240.9,240.89,0.06]
[1757921063283,32.76068181,240.9,240.89,0.06]
[1757921063464,64.86068181,240.9,240.89,0.06]
[1757921063658,69.01178185,240.9,240.89,0.06]
[1757921063970,68.35178185,240.9,240.89,0.06]
[1757921064171,69.01178185,240.9,240.89,0.06]
[1757921064873,36.25178185,240.9,240.89,0.06]
[1757921065078,68.33178185,240.9,240.89,0.06]
[1757921065575,68.99178185,240.9,240.89,0.06]
[1757921071884,36.91178185,240.9,240.89,0.06]
[1757921072070,32.10068181,240.9,240.89,0.06]
[1757921072273,58.1,240.9,240.89,0.06]
[1757921072683,62.25110004,240.9,240.89,0.06]
[1757921074191,62.91110004,240.9,240.89,0.06]
[1757921075666,65.66252345,240.9,240.89,0.06]
[1757921076776,71.76320526,240.9,240.89,0.06]
[1757921076989,71.76320526,240.9,240.88,0.06]
[1757921077290,71.76320526,240.9,240.76,13.59559401]
[1757921077291,26.0,240.86,240.76,13.59559401]
[1757921077477,26.0,240.82,240.76,13.59559401]
[1757921077685,32.1,240.81,240.76,13.59559401]
[1757921077987,32.1,240.81,240.76,0.52]
[1757921078194,0.66,240.8,240.74,13.59559401]
[1757921078373,36.25299638,240.79,240.74,13.59559401]
[1757921078568,36.25299638,240.79,240.74,14.11559401]
[1757921079086,36.93299638,240.79,240.72,0.52]
[1757921079309,47.31548734,240.79,240.72,0.52]
[1757921080116,47.31548734,240.79,240.7,14.11559401]
[1757921080315,46.63548734,240.79,240.7,14.11559401]
[1757921080609,0.68,240.78,240.7,14.11559401]
[1757921080914,32.1,240.77,240.7,14.11559401]
[1757921081271,32.1,240.77,240.71,0.52]
[1757921082901,32.1,240.77,240.71,4.67436071]
[1757921083267,36.25339201,240.77,240.71,4.67436071]
[1757921083471,36.25339201,240.77,240.71,0.52]
[1757921083875,0.68,240.76,240.67,13.59559401]
[1757921084077,32.78,240.75,240.67,18.27064517]
[1757921084873,4.15385893,240.74,240.67,18.27064517]
[1757921085075,32.78,240.75,240.67,18.27064517]
[1757921085402,0.68,240.74,240.67,18.27064517]
[1757921086375,32.1,240.75,240.67,18.27064517]
[1757921086575,26.0,240.72,240.66,0.52]
[1757921086783,32.1,240.71,240.67,13.59559401]
[1757921086978,32.1,240.71,240.67,14.11559401]
[1757921087192,32.1,240.71,240.65,2.17219408]
[1757921087193,32.1,240.71,240.66,13.59559401]
[1757921087391,32.1,240.71,240.67,0.52]
[1757921089303,32.1,240.71,240.67,4.67506574]
[1757921089710,32.1,240.71,240.69,13.59559401]
[1757921090293,32.1,240.71,240.67,17.75065975]
[1757921090507,32.1,240.71,240.67,18.27065975]
[1757921090708,26.68,240.74,240.67,17.75065975]
[1757921090886,26.68,240.74,240.69,13.59559401]
[1757921091091,32.8,240.73,240.67,17.75065975]
[1757921091584,32.8,240.73,240.66,0.52]
[1757921091787,32.8,240.73,240.66,14.11559401]
[1757921092393,32.8,240.73,240.66,18.27082626]
[1757921092704,0.68,240.72,240.66,13.59559401]
[1757921092907,0.68,240.71,240.61,4.15603581]
[1757921093215,58.8,240.7,240.67,0.06]
[1757921093505,2.74566288,240.69,240.67,0.06]
[1757921093881,0.68,240.68,240.67,0.06]
[1757921094078,35.52634469,240.68,240.67,0.06]
[1757921094279,35.17206012,240.67,240.64,0.06]
[1757921094522,34.86566288,240.66,240.64,0.06]
[1757921094695,2.74566288,240.65,240.64,0.06]
[1757921094892,6.9010753,240.65,240.64,0.06]
[1757921095201,7.5810753,240.65,240.64,0.06]
[1757921095405,36.95541242,240.65,240.64,0.06]
[1757921095622,39.7010753,240.65,240.64,0.06]
[1757921095780,7.5810753,240.65,240.64,0.06]
[1757921095987,36.95541242,240.65,240.64,0.06]
[1757921096186,39.7010753,240.65,240.64,0.06]
[1757921096582,41.87437792,240.65,240.64,0.06]
[1757921097302,47.97505973,240.65,240.64,0.06]
[1757921097797,15.85505973,240.65,240.64,0.06]
[1757921097986,43.05609423,240.65,240.64,0.06]
[1757921098189,45.80175711,240.65,240.64,0.06]
[1757921099097,35.57566288,240.65,240.64,0.06]
[1757921099409,174.17634469,240.65,240.64,0.06]
[1757921099595,41.67634469,240.65,240.64,0.06]
[1757921101903,54.17920993,240.65,240.64,0.06]
[1757921103497,26.0,240.62,240.5,2.75338755]
[1757921103698,61.5692004,240.61,240.51,13.59559401]
[1757921104008,3.4492004,240.6,240.51,13.59559401]
[1757921104209,26.0,240.56,240.51,13.59559401]
[1757921104394,32.12,240.55,240.5,0.58]
[1757921105188,32.12,240.55,240.49,13.59559401]
[1757921105390,32.12,240.55,240.5,0.58]
[1757921105612,32.12,240.55,240.51,0.58]
[1757921107018,0.71,240.58,240.53,13.59559401]
[1757921107019,32.12,240.54,240.53,13.59559401]
[1757921107523,32.12,240.54,240.51,13.59559401]
[1757921107689,32.12,240.54,240.48,17.75394397]
[1757921107892,32.12,240.54,240.49,0.58]
[1757921108310,32.12,240.54,240.48,17.75394397]
[1757921108519,32.12,240.54,240.51,13.59559401]
[1757921108720,32.12,240.54,240.51,14.17559401]
[1757921109313,32.14,240.54,240.51,18.33337025]
[1757921109923,26.0,240.59,240.53,13.59559401]
[1757921110095,32.14,240.58,240.54,0.58]
[1757921110297,32.14,240.57,240.55,0.58]
[1757921110498,26.0,240.61,240.52,13.59559401]
[1757921110709,32.14,240.6,240.53,0.58]
[1757921111344,0.68,240.65,240.55,13.59559401]
[1757921111521,32.14,240.64,240.55,13.59559401]
[1757921111708,58.82,240.64,240.56,0.58]
[1757921111902,58.82,240.64,240.55,13.59559401]
[1757921112208,26.0,240.6,240.48,22.89696677]
[1757921112519,32.82,240.59,240.51,13.59559401]
[1757921112722,32.14,240.58,240.51,13.59559401]
[1757921113101,32.82,240.58,240.51,13.59559401]
[1757921113307,32.82,240.58,240.55,0.06]
[1757921113505,4.83679428,240.57,240.55,0.06]
[1757921114421,0.68,240.56,240.55,0.06]
[1757921116009,0.68,240.58,240.55,0.06]
[1757921116219,0.68,240.6,240.55,0.06]
[1757921116415,32.14,240.59,240.55,4.21713988]
[1757921116711,32.14,240.59,240.56,13.59559401]
[1757921117201,32.82,240.59,240.56,13.59559401]
[1757921117400,26.0,240.6,240.56,14.17559401]
[1757921117631,32.14,240.59,240.58,13.59559401]
[1757921118010,32.14,240.6,240.58,17.7522155]
[1757921118534,32.14,240.6,240.56,17.75239101]
[1757921118730,32.14,240.6,240.56,18.33239101]
[1757921119729,32.82,240.6,240.56,17.75239101]
[1757921120508,32.14,240.6,240.56,17.75239101]
[1757921121110,32.14,240.6,240.56,18.33239101]
[1757921121318,32.14,240.6,240.56,17.75239101]
[1757921121933,32.14,240.6,240.55,0.06]
[1757921122110,32.14,240.6,240.55,4.7971373]
[1757921122310,32.14,240.61,240.56,14.17559401]
[1757921122511,32.14,240.61,240.57,0.58]
[1757921122911,132.5,240.63,240.58,0.58]
[1757921123107,32.14,240.62,240.56,14.17559401]
[1757921124115,32.82,240.62,240.58,13.59559401]
[1757921124418,0.68,240.61,240.58,13.59559401]
[1757921124622,36.29593811,240.62,240.55,0.06]
[1757921124813,0.68,240.61,240.55,0.06]
[1757921125544,3.43808243,240.61,240.55,4.21703977]
[1757921125737,2.75808243,240.61,240.56,0.58]
[1757921125919,3.43808243,240.61,240.55,4.21703977]
[1757921126119,3.43808243,240.63,240.56,13.59559401]
[1757921126346,32.14,240.62,240.56,13.59559401]
[1757921126642,32.82,240.62,240.56,13.59559401]
[1757921127135,32.14,240.61,240.56,14.17559401]
[1757921127336,0.68,240.6,240.55,4.21703977]
[1757921127533,0.68,240.59,240.55,4.21703977]
[1757921127733,0.68,240.59,240.56,13.59559401]
[1757921128316,32.82,240.61,240.58,13.59559401]
[1757921128514,0.68,240.6,240.58,13.59559401]
[1757921128915,0.68,240.66,240.59,0.58]
[1757921129136,34.90425041,240.65,240.58,13.59559401]
[1757921129356,3.44425041,240.64,240.58,13.59559401]
[1757921129653,2.76425041,240.63,240.58,13.59559401]
[1757921129852,3.44425041,240.63,240.58,13.59559401]
[1757921130040,0.68,240.63,240.58,13.59559401]
[1757921130256,2.76425041,240.62,240.6,13.59559401]
[1757921130650,32.14,240.65,240.6,13.59559401]
[1757921130851,3.4456832,240.64,240.6,13.59559401]
[1757921131052,3.4456832,240.63,240.6,13.59559401]
[1757921131242,2.7656832,240.62,240.6,13.59559401]
[1757921131767,2.7656832,240.64,240.6,13.59559401]
[1757921131962,2.7656832,240.63,240.6,13.59559401]
[1757921132158,2.7656832,240.62,240.6,13.59559401]
[1757921132467,0.71,240.64,240.6,4.15627507]
[1757921132643,2.76884862,240.63,240.6,4.15627507]
[1757921132963,2.76884862,240.62,240.6,4.15627507]
[1757921133138,2.76884862,240.63,240.6,4.15627507]
[1757921133879,0.65,240.62,240.55,0.06]
[1757921134552,4.8059898,240.62,240.57,13.59559401]
[1757921134742,0.65,240.61,240.57,13.59559401]
[1757921135347,2.76884862,240.63,240.57,13.59559401]
[1757921135539,2.76884862,240.62,240.57,14.17559401]
[1757921135735,2.76884862,240.63,240.59,13.59559401]
[1757921135941,2.76884862,240.62,240.59,14.17559401]
[1757921136172,2.76884862,240.63,240.59,14.17559401]
[1757921136352,2.76884862,240.62,240.57,14.17559401]
[1757921136554,2.76884862,240.63,240.59,13.59559401]
[1757921136754,0.03,240.64,240.61,13.59559401]
[1757921137066,0.03,240.64,240.63,13.59559401]
[1757921137942,0.03,240.64,240.59,13.59559401]
[1757921138140,0.03,240.64,240.62,14.17559401]
[1757921138557,0.03,240.64,240.63,14.17559401]
[1757921140275,0.03,240.64,240.63,18.33135181]
[1757921140971,0.03,240.64,240.63,17.75135181]
[1757921141569,0.03,240.64,240.63,13.59559401]
[1757921141758,0.75,240.64,240.63,13.59559401]
[1757921144069,3.52553428,240.64,240.63,13.59559401]
[1757921144251,30.9055851,240.64,240.55,0.06]
[1757921144446,2.77239014,240.63,240.55,0.06]
[1757921144778,2.77239014,240.62,240.55,0.06]
[1757921145076,2.77239014,240.61,240.55,0.06]
[1757921145275,34.91239014,240.6,240.55,0.06]
[1757921145469,3.49239014,240.59,240.55,0.06]
[1757921146544,2.77239014,240.59,240.56,13.59559401]
[1757921146749,0.72,240.58,240.56,13.59559401]
[1757921146960,0.72,240.57,240.55,0.06]
[1757921147275,0.72,240.58,240.56,13.59559401]
[1757921147576,32.14,240.59,240.56,13.59559401]
[1757921147780,0.72,240.57,240.56,13.59559401]
[1757921147965,32.86,240.59,240.56,13.59559401]
[1757921148557,32.86,240.59,240.57,13.59559401]
[1757921149479,32.14,240.61,240.57,13.59559401]
[1757921149863,0.75,240.64,240.59,13.59559401]
[1757921150068,32.89,240.64,240.59,13.59559401]
[1757921150270,32.17,240.64,240.59,13.59559401]
[1757921150582,0.72,240.63,240.59,13.59559401]
[1757921150877,0.72,240.62,240.59,13.59559401]
[1757921151074,0.72,240.61,240.59,13.59559401]
[1757921151646,2.77286708,240.63,240.59,13.59559401]
[1757921151874,32.91,240.64,240.59,13.59559401]
[1757921152076,3.49286708,240.63,240.59,13.59559401]
[1757921152577,32.19,240.64,240.61,17.75169724]
[1757921152784,32.91,240.64,240.61,17.75169724]
[1757921153153,32.19,240.64,240.61,17.75169724]
[1757921153566,32.19,240.64,240.59,13.59559401]
[1757921153786,0.72,240.63,240.59,17.75204274]
[1757921154083,32.19,240.64,240.6,0.58]
[1757921154286,0.03,240.64,240.61,0.58]
[1757921154461,0.03,240.64,240.6,13.59559401]
[1757921154782,0.03,240.64,240.62,13.59559401]
[1757921157059,0.03,240.64,240.63,17.75135181]
[1757921157786,0.03,240.64,240.63,13.59559401]
[1757921159059,0.03,240.64,240.63,17.75135181]
[1757921160361,0.03,240.64,240.63,18.33135181]
[1757921160575,0.03,240.64,240.63,17.75135181]
[1757921160779,0.03,240.64,240.63,18.33135181]
[1757921161789,0.03,240.64,240.63,17.75135181]
[1757921163920,0.03,240.64,240.63,13.59559401]
[1757921164090,0.03,240.64,240.63,17.75135181]
[1757921165100,0.03,240.64,240.63,18.33135181]
[1757921168098,0.03,240.64,240.63,17.75135181]
[1757921169604,0.03,240.64,240.63,18.33135181]
[1757921170676,0.03,240.64,240.63,17.75135181]
[1757921171197,0.03,240.64,240.63,17.81135181]
[1757921173080,0.03,240.64,240.63,18.39135181]
[1757921176415,0.03,240.67,240.66,39.59559401]
[1757921176782,0.03,240.67,240.66,40.17559401]
[1757921176981,0.03,240.67,240.66,39.59559401]
[1757921177195,0.75,240.67,240.66,13.59559401]
[1757921179818,4.9050671,240.67,240.63,0.06]
[1757921180697,15.29273486,240.67,240.63,0.06]
[1757921181080,26.0,240.64,240.63,0.06]
[1757921181310,58.14,240.64,240.63,0.06]
[1757921181487,58.86,240.64,240.63,0.06]
[1757921182731,63.0155851,240.64,240.63,0.06]
[1757921184796,0.72,240.64,240.63,0.06]
[1757921185002,32.86,240.64,240.63,0.06]
[1757921188903,37.78965504,240.64,240.63,0.06]
[1757921190451,39.59559401,240.6,240.47,12.85621757]
[1757921190651,26.0,240.56,240.47,12.85621757]
[1757921190850,26.0,240.52,240.47,12.85621757]
[1757921191012,26.0,240.48,240.47,12.85621757]
[1757921191320,38.04377882,240.48,240.33,0.7]
[1757921191520,26.0,240.44,240.33,0.7]
[1757921191724,33.22,240.43,240.3,4.86131505]
[1757921191935,0.72,240.42,240.3,4.86131505]
[1757921192124,6.09124802,240.41,240.31,0.7]
[1757921192524,33.22,240.4,240.32,13.59559401]
[1757921192725,4.16007987,240.38,240.32,13.59559401]
[1757921192927,11.33064283,240.38,240.32,13.59559401]
[1757921193326,7.89056296,240.38,240.3,4.16131505]
[1757921193533,37.58929989,240.37,240.31,13.59559401]